fUSD/lending_fUSD_20250504
["ID","MTS","AMOUNT","RATE_DAILY","PERIOD"]
[359784744,1746346238524,-450.0,0.00019985,2]
[359784745,1746346238533,-504.05,0.00019985,2]
[359784746,1746346238543,-450.0,0.00019985,2]
[359784747,1746346238553,-597.78,0.00019985,2]
[359784748,1746346238563,-450.0,0.00019985,2]
[359784749,1746346238573,-585.02,0.00019985,2]
[359784750,1746346238582,-450.0,0.00019985,2]
[359784751,1746346238592,-3353.5182907,0.00019986,2]
[359784752,1746346238602,-27162.99337417,0.00019986,2]
[359784753,1746346238615,-1836.93243508,0.00019986,2]
[359784755,1746346240359,-1.34406355,0.00019969,2]
[359784756,1746346240601,-876.65593645,0.00019969,2]
[359784757,1746346240611,-84.24406355,0.00019986,2]
[359784758,1746346240625,-1007.5722947,0.00019986,2]
[359784789,1746346243839,-707.675,0.00019986,2]
[359784790,1746346244078,-3819.50304534,0.00019986,2]
[359784803,1746346245968,-418.29,0.00019984,2]
[359784804,1746346245978,-3437.07096479,0.00019986,2]
[359784805,1746346246097,-3434.12887577,0.00019986,2]
[359784806,1746346246166,-4814.05706955,0.00019986,2]
[359784807,1746346246178,-1926.4608,0.00019986,2]
[359784811,1746346250153,-72023.81559225,0.00019986,2]
[359784812,1746346250164,-4815.0944696,0.00019986,2]
[359784813,1746346250175,-151.0,0.00019987,2]
[359784814,1746346250185,-450.0,0.00019998,2]
[359784815,1746346250197,-450.0,0.00019998,2]
[359784816,1746346250207,-450.0,0.00019998,2]
[359784817,1746346250218,-582.86,0.00019998,2]
[359784818,1746346250229,-650.52,0.00019998,2]
[359784819,1746346250239,-450.0,0.00019998,2]
[359784820,1746346250250,-450.0,0.00019998,2]
[359784821,1746346250262,-582.21,0.00019998,2]
[359784822,1746346250272,-1480.69,0.00019998,2]
[359784823,1746346250282,-450.0,0.00019998,2]
[359784824,1746346250294,-827.57,0.00019998,2]
[359784825,1746346250305,-167.51119168,0.00019998,2]
[359784826,1746346250316,-450.0,0.00019998,2]
[359784827,1746346250327,-450.0,0.00019998,2]
[359784828,1746346250339,-409.33151391,0.00019998,2]
[359784829,1746346250352,-450.0,0.00019998,2]
[359784830,1746346250363,-450.0,0.00019998,2]
[359784831,1746346250372,-57612.85,0.00019998,2]
[359784832,1746346250382,-293.3018184,0.00019998,2]
[359784833,1746346376537,180.45307,0.0002,23]
[359784834,1746346430139,680.75,0.00017235,2]
[359784835,1746346430329,680.75,0.00019499,2]
[359784836,1746346511913,162.32,0.00015304,2]
[359784843,1746346584400,1000.0,0.00019106,2]
[359784844,1746346591024,471.03,0.00019106,2]
[359784845,1746346644008,200.0,0.00019106,2]
[359784846,1746346682082,180.45307,0.000273,39]
[359784847,1746346682131,180.45307,0.000248,34]
[359784848,1746346682174,180.45307,0.000298,44]
[359784849,1746346690660,1016.29268482,0.00018,2]
[359784850,1746346697493,171.41,0.00016712,2]
[359784851,1746346740871,161.59,0.00019106,2]
[359784853,1746346790742,267.97,0.00019083,2]
[359784854,1746346913159,621.28,0.00019071,2]
[359784855,1746346987223,180.45307,0.0002595,36]
[359784856,1746346995651,310.28,0.00019066,2]
[359784857,1746347055768,250.0,0.00019066,2]
[359784858,1746347091710,529.8915209,0.0001949,2]
[359784859,1746347119185,200.0,0.00019078,2]
[359784863,1746347161689,4000.0,0.00019078,2]
[359784875,1746347321167,250.0,0.00017,2]
[359784876,1746347322245,300.0,0.00019,2]
[359784877,1746347349014,655.5,0.000195,2]
[359784878,1746347374002,682.23,0.00019066,2]
[359784883,1746347413318,2608.14,0.00019027,2]
[359784892,1746347432106,-292.93001241,0.00019686,2]
[359784893,1746347432116,-805.5287733,0.0001975,2]
[359784894,1746347432125,-159.19,0.00019786,2]
[359784895,1746347432135,-335.8234,0.00019788,2]
[359784896,1746347432144,-207.4,0.00019888,2]
[359784897,1746347432154,-419.12779029,0.0001989,2]
[359784898,1746347432174,-80.87220971,0.0001989,2]
[359784899,1746347432184,-1200.0,0.00019899,2]
[359784900,1746347432193,-300.0,0.00019899,2]
[359784901,1746347432202,-234.49271759,0.000199,2]
[359784902,1746347432222,-145.48781809,0.000199,2]
[359784903,1746347432231,-732.61540394,0.000199,2]
[359784904,1746347432240,-6759.0,0.00019903,2]
[359784905,1746347432249,-1167.93269329,0.0001997,2]
[359784906,1746347432322,-404.31087597,0.0001997,2]
[359784907,1746347432333,-343.84793786,0.0001997,2]
[359784908,1746347432342,-500.0,0.00019973,2]
[359784909,1746347432351,-500.0,0.00019973,2]
[359784910,1746347432360,-500.0,0.00019973,2]
[359784911,1746347432369,-1019.597,0.00019983,2]
[359784912,1746347432378,-483.05,0.00019984,2]
[359784913,1746347432387,-560.65,0.00019984,2]
[359784914,1746347432396,-450.0,0.00019984,2]
[359784915,1746347432405,-450.0,0.00019984,2]
[359784916,1746347432415,-450.0,0.00019984,2]
[359784917,1746347432424,-540.72619539,0.00019984,2]
[359784919,1746347432433,-450.0,0.00019984,2]
[359784920,1746347432442,-223.55267778,0.00019984,2]
[359784963,1746347438085,259.18,0.00019353,2]
[359784964,1746347438243,-2159.0,0.00019903,2]
[359784965,1746347438253,-493.21732222,0.00019984,2]
[359784966,1746347438263,-450.0,0.00019984,2]
[359784967,1746347438272,-450.0,0.00019984,2]
[359784968,1746347438281,-450.0,0.00019984,2]
[359784969,1746347438290,-450.0,0.00019984,2]
[359784970,1746347438299,-450.0,0.00019984,2]
[359784971,1746347438308,-450.0,0.00019984,2]
[359784972,1746347438318,-433.79408505,0.00019984,2]
[359784973,1746347438328,-16.20591495,0.00019984,2]
[359784974,1746347438337,-1313.49,0.00019984,2]
[359784975,1746347438346,-458.15660554,0.00019984,2]
[359784976,1746347438355,-561.64,0.00019984,2]
[359784977,1746347438364,-450.0,0.00019984,2]
[359784978,1746347438374,-450.0,0.00019984,2]
[359784979,1746347438383,-1155.23,0.00019984,2]
[359784980,1746347438393,-368.5916623,0.00019984,2]
[359784981,1746347438406,-131.4083377,0.00019984,2]
[359784982,1746347438415,-150.0,0.00019984,2]
[359784983,1746347438424,-150.0,0.00019984,2]
[359784984,1746347438433,-500.0,0.00019984,2]
[359784985,1746347438443,-182.69459082,0.00019984,2]
[359784986,1746347438452,-150.0,0.00019984,2]
[359784987,1746347438461,-160.18,0.00019985,2]
[359784989,1746347438470,-450.0,0.00019985,2]
[359784991,1746347438479,-522.91,0.00019985,2]
[359784993,1746347438488,-208.04,0.00019985,2]
[359784995,1746347438498,-286.23,0.00019985,2]
[359784997,1746347438507,-254.19,0.00019985,2]
[359784999,1746347438516,-262.68,0.00019985,2]
[359785001,1746347438526,-245.99,0.00019985,2]
[359785003,1746347438535,-609.41,0.00019985,2]
[359785005,1746347438545,-334.93,0.00019985,2]
[359785007,1746347438554,-389.24,0.00019985,2]
[359785009,1746347438563,-207.07,0.00019985,2]
[359785011,1746347438572,-450.0,0.00019985,2]
[359785013,1746347438582,-450.0,0.00019985,2]
[359785015,1746347438591,-450.0,0.00019985,2]
[359785017,1746347438600,-39.146071,0.00019985,2]
[359785020,1746347438613,-410.853929,0.00019985,2]
[359785021,1746347438623,-450.0,0.00019985,2]
[359785023,1746347438632,-450.0,0.00019985,2]
[359785025,1746347438642,-450.0,0.00019985,2]
[359785027,1746347438651,-450.0,0.00019985,2]
[359785028,1746347438661,-450.0,0.00019985,2]
[359785030,1746347438670,-411.74897654,0.00019985,2]
[359785031,1746347438679,-450.0,0.00019985,2]
[359785032,1746347438688,-450.0,0.00019985,2]
[359785033,1746347438697,-754.0,0.00019985,2]
[359785034,1746347438706,-450.0,0.00019985,2]
[359785035,1746347438715,-450.0,0.00019985,2]
[359785036,1746347438724,-450.0,0.00019985,2]
[359785037,1746347438734,-450.0,0.00019985,2]
[359785038,1746347438742,-450.0,0.00019985,2]
[359785039,1746347438751,-450.0,0.00019985,2]
[359785040,1746347438760,-525.85,0.00019985,2]
[359785041,1746347438769,-450.0,0.00019985,2]
[359785042,1746347438778,-300.42861565,0.00019985,2]
[359785043,1746347438787,-450.0,0.00019985,2]
[359785044,1746347438796,-450.0,0.00019985,2]
[359785045,1746347438805,-2161.86,0.00019985,2]
[359785046,1746347438814,-1203.2,0.00019985,2]
[359785047,1746347438824,-450.0,0.00019985,2]
[359785048,1746347438833,-15854.1471379,0.00019985,2]
[359785049,1746347438845,-758.0761197,0.00019985,2]
[359785050,1746347438855,-1331.4071871,0.00019985,2]
[359785051,1746347438871,-4010.0,0.00019903,2]
[359785052,1746347438879,-790.0,0.00019985,2]
[359785053,1746347440289,-9429.67100035,0.00019985,2]
[359785054,1746347440397,-996.57143893,0.00019985,2]
[359785055,1746347440608,-614.704,0.00019985,2]
[359785064,1746347443489,-1567.17304762,0.00019985,2]
[359785065,1746347443501,-2441.93467861,0.00019985,2]
[359785066,1746347443545,-590.7342829,0.00019985,2]
[359785067,1746347443556,-348.25,0.00019985,2]
[359785068,1746347443653,168.74,0.00013699,2]
[359785069,1746347443756,-325.71505197,0.00019985,2]
[359785108,1746347444151,168.74,0.00013699,2]
[359785154,1746347444576,168.74,0.00013699,2]
[359785203,1746347445020,168.74,0.00013699,2]
[359785290,1746347445837,168.74,0.00013699,2]
[359785334,1746347446168,-659.63247814,0.00019985,2]
[359785337,1746347446183,-1920.0,0.00019985,2]
[359785344,1746347446243,-3088.18834939,0.00019985,2]
[359785346,1746347446255,-8811.40522739,0.00019985,2]
[359785348,1746347446264,-450.0,0.00019985,2]
[359785350,1746347446274,-450.0,0.00019985,2]
[359785352,1746347446283,-450.0,0.00019985,2]
[359785354,1746347446293,-450.0,0.00019985,2]
[359785356,1746347446303,-854.11,0.00019985,2]
[359785358,1746347446312,-450.0,0.00019985,2]
[359785360,1746347446322,-450.0,0.00019985,2]
[359785362,1746347446332,-2571.78,0.00019985,2]
[359785364,1746347446341,-450.0,0.00019985,2]
[359785366,1746347446351,-450.0,0.00019985,2]
[359785368,1746347446360,-450.0,0.00019985,2]
[359785370,1746347446369,-791.03,0.00019985,2]
[359785372,1746347446379,-450.0,0.00019985,2]
[359785374,1746347446389,-6172.10186684,0.00019985,2]
[359785378,1746347446415,-456.5566777,0.00019985,2]
[359785382,1746347446444,168.74,0.00013699,2]
[359785384,1746347446458,-156.62145546,0.00019985,2]
[359785386,1746347446468,-442.76630091,0.00019985,2]
[359785388,1746347446480,-155.42369909,0.00019985,2]
[359785390,1746347446489,-450.0,0.00019985,2]
[359785392,1746347446499,-450.0,0.00019985,2]
[359785394,1746347446508,-450.0,0.00019985,2]
[359785396,1746347446518,-450.0,0.00019985,2]
[359785398,1746347446527,-450.0,0.00019985,2]
[359785400,1746347446536,-531.53,0.00019985,2]
[359785402,1746347446545,-450.0,0.00019985,2]
[359785404,1746347446555,-450.0,0.00019985,2]
[359785406,1746347446564,-450.0,0.00019985,2]
[359785408,1746347446573,-450.0,0.00019985,2]
[359785410,1746347446583,-450.0,0.00019985,2]
[359785412,1746347446593,-450.0,0.00019985,2]
[359785414,1746347446602,-1022.58,0.00019985,2]
[359785416,1746347446612,-493.81,0.00019985,2]
[359785418,1746347446621,-450.0,0.00019985,2]
[359785419,1746347446630,-498.22,0.00019985,2]
[359785420,1746347446639,-450.0,0.00019985,2]
[359785421,1746347446650,-450.0,0.00019985,2]
[359785422,1746347446659,-572.88,0.00019985,2]
[359785423,1746347446669,-462.92,0.00019985,2]
[359785424,1746347446678,-151.0,0.00019985,2]
[359785425,1746347446688,-3678.2011302,0.00019986,2]
[359785426,1746347446697,-19.74950686,0.00019986,2]
[359785427,1746347446718,-608.39948466,0.00019986,2]
[359785436,1746347446779,168.74109489,0.00013699,2]
[359785683,1746347471180,190.46,0.00019175,2]
[359785684,1746347471359,150.0,0.00019175,2]
[359785686,1746347572539,-181.26,0.00019623,2]
[359785687,1746347575933,-200.0,0.00019623,2]
[359785688,1746347579190,-161.33106,0.00019623,2]
[359785689,1746347583926,-275.64311037,0.00019623,2]
[359785690,1746347589174,-2.45959744,0.00019623,2]
[359785691,1746347591633,-217.35322419,0.00019524,2]
[359785692,1746347597988,180.45307,0.0001993,23]
[359785693,1746347598284,-416.66,0.00019524,2]
[359785694,1746347605045,-2.96094581,0.00019524,2]
[359785695,1746347613825,680.61,0.00017185,2]
[359785696,1746347613859,680.61,0.00019449,2]
[359785697,1746347646557,1000.0,0.00019092,2]
[359785698,1746347777591,151.4,0.0001901,2]
[359785699,1746347814264,200.0,0.00018964,2]
[359785700,1746348051144,150.0,0.00018922,2]
[359785701,1746348072963,-282.8438483,0.00019583,2]
[359785702,1746348103630,201.13829381,0.00019485,2]
[359785703,1746348121889,1000.0,0.0003,30]
[359785704,1746348140813,219.812822,0.00019485,2]
[359785705,1746348185130,1000.0,0.0003,33]
[359785706,1746348186779,450.0,0.0003,30]
[359785708,1746348281920,364.37,0.00018928,2]
[359785709,1746348322264,854.39373943,0.0001911,2]
[359785710,1746348322907,854.39373943,0.00019237,2]
[359785720,1746348366761,250.0,0.00018926,2]
[359785721,1746348400791,636.87,0.00018918,2]
[359785724,1746348449945,-152.0,0.00019503,2]
[359785727,1746348455754,-192.11888246,0.00019503,2]
[359785728,1746348461514,-180.01,0.00019503,2]
[359785729,1746348465319,-330.26485697,0.00019503,2]
[359785731,1746348513387,200.0,0.00018945,2]
[359785732,1746348543680,-166.5889504,0.00019501,2]
[359785735,1746348547821,-1.8210496,0.00019501,2]
[359785793,1746348570074,-199.52301395,0.00019501,2]
[359785794,1746348573983,-263.02023384,0.00019501,2]
[359785795,1746348577588,-391.85049164,0.00019501,2]
[359785796,1746348592218,2027.98,0.0001892,2]
[359785802,1746348622795,1000.0,0.0001892,2]
[359785808,1746348632408,-222.11804783,0.00019641,2]
[359785809,1746348632419,-250.0,0.00019666,2]
[359785810,1746348632428,-207.4,0.0001969,2]
[359785811,1746348632437,-404.6069148,0.00019702,2]
[359785862,1746348638685,-595.3930852,0.00019702,2]
[359785863,1746348638694,-150.0,0.00019741,2]
[359785864,1746348638703,-154.36297733,0.0001985,2]
[359785865,1746348638714,-668.65185757,0.00019884,2]
[359785866,1746348638725,-151.0,0.00019884,2]
[359785868,1746348638734,-300.0,0.00019884,2]
[359785870,1746348638743,-1200.0,0.00019884,2]
[359785872,1746348638752,-300.0,0.00019884,2]
[359785874,1746348638761,-267.98244926,0.00019885,2]
[359785875,1746348638770,-823.68827465,0.00019885,2]
[359785877,1746348638779,-991.8587,0.00019886,2]
[359785879,1746348638788,-4550.2853,0.00019886,2]
[359785881,1746348638797,-498.36371563,0.00019886,2]
[359785883,1746348638806,-82.1273213,0.00019887,2]
[359785885,1746348638819,-185.85512788,0.00019887,2]
[359785886,1746348638830,-823.68827463,0.00019887,2]
[359785887,1746348638840,-267.98244918,0.00019888,2]
[359785888,1746348638849,-823.68827463,0.00019888,2]
[359785889,1746348638858,-267.98244918,0.0001989,2]
[359785890,1746348638867,-823.68827463,0.0001989,2]
[359785891,1746348638876,-267.98244918,0.00019892,2]
[359785892,1746348638887,-823.68827463,0.00019892,2]
[359785893,1746348638897,-267.98244918,0.00019893,2]
[359785895,1746348638906,-823.68827463,0.00019893,2]
[359785897,1746348638915,-850.0,0.00019895,2]
[359785899,1746348638924,-267.98244918,0.00019895,2]
[359785901,1746348638933,-823.68827463,0.00019895,2]
[359785903,1746348638942,-2868.45487106,0.00019896,2]
[359785907,1746348638953,-368.84255973,0.00019896,2]
[359785910,1746348638964,-1919.96595877,0.00019896,2]
[359785915,1746348638985,-1176.37563326,0.00019896,2]
[359785946,1746348640607,-163.16300651,0.00019896,2]
[359785947,1746348640657,-255.28101816,0.00019896,2]
[359785948,1746348640925,-1096.95,0.00019896,2]
[359786007,1746348644656,673.69,0.0001716,2]
[359786029,1746348644857,673.69,0.00019423,2]
[359786208,1746348646508,-32937.77346631,0.00019896,2]
[359786232,1746348646717,-6548.76428359,0.00019896,2]
[359786234,1746348646727,-267.98244918,0.00019897,2]
[359786236,1746348646735,-823.68827463,0.00019897,2]
[359786238,1746348646745,-267.98244918,0.00019898,2]
[359786240,1746348646754,-823.68827463,0.00019898,2]
[359786242,1746348646763,-500.0,0.00019899,2]
[359786244,1746348646772,-486.73141343,0.00019899,2]
[359788074,1746348674917,-304.06,0.00019501,2]
[359788075,1746348684338,-160.81946718,0.00019501,2]
[359788076,1746348689985,-535.12829413,0.00019501,2]
[359788077,1746348690008,-187.06215377,0.00019799,2]
[359788078,1746348690028,-827.69726303,0.000198,2]
[359788079,1746348690048,-1617.7153,0.00019854,2]
[359788080,1746348690069,-187.06215377,0.00019884,2]
[359788081,1746348690088,-1645.3348353,0.00019884,2]
[359788082,1746348700709,-868.1133647,0.00019884,2]
[359788083,1746348700733,-1000.0,0.00019884,2]
[359788084,1746348700756,-2022.3081,0.00019884,2]
[359788085,1746348700776,-225.0,0.00019884,2]
[359788086,1746348700797,-500.0,0.00019885,2]
[359788087,1746348700819,-300.0,0.00019899,2]
[359788088,1746348700856,-13.26858657,0.00019899,2]
[359788089,1746348700887,-71.30994873,0.00019899,2]
[359788090,1746348705218,1091.33503788,0.00019486,2]
[359788091,1746348711242,-294.79624858,0.00019899,2]
[359788092,1746348711278,-500.0,0.00019899,2]
[359788093,1746348711310,-500.0,0.00019899,2]
[359788094,1746348711339,-500.0,0.00019899,2]
[359788095,1746348711371,-500.0,0.00019899,2]
[359788096,1746348711401,-500.0,0.00019899,2]
[359788097,1746348711430,-500.0,0.00019899,2]
[359788098,1746348711460,-500.0,0.00019899,2]
[359788099,1746348711488,-643.89117094,0.00019899,2]
[359788100,1746348711518,-500.0,0.00019899,2]
[359788101,1746348711546,-61.31258048,0.00019899,2]
[359788102,1746348721427,-438.68741952,0.00019899,2]
[359788103,1746348721459,-500.0,0.00019899,2]
[359788104,1746348721492,-500.0,0.00019899,2]
[359788105,1746348721524,-500.0,0.00019899,2]
[359788106,1746348721548,-500.0,0.00019899,2]
[359788107,1746348721580,-500.0,0.00019899,2]
[359788108,1746348721605,-500.0,0.00019899,2]
[359788109,1746348721640,-500.0,0.00019899,2]
[359788110,1746348721663,-500.0,0.00019899,2]
[359788111,1746348721686,-500.0,0.00019899,2]
[359788112,1746348721709,-61.31258048,0.00019899,2]
[359788113,1746348730983,-300.0,0.00019898,2]
[359788114,1746348731012,-250.0,0.00019899,2]
[359788115,1746348731039,-188.68741952,0.00019899,2]
[359788116,1746348731072,-500.0,0.00019899,2]
[359788117,1746348731104,-500.0,0.00019899,2]
[359788118,1746348731142,-500.0,0.00019899,2]
[359788119,1746348731176,-500.0,0.00019899,2]
[359788120,1746348731504,-500.0,0.00019899,2]
[359788121,1746348731550,-500.0,0.00019899,2]
[359788122,1746348731574,-500.0,0.00019899,2]
[359788123,1746348731598,-500.0,0.00019899,2]
[359788124,1746348731622,-261.31258048,0.00019899,2]
[359788125,1746348738988,-153.4,0.00019501,2]
[359788126,1746348741296,-966.87227357,0.00019501,2]
[359788127,1746348741317,-193.21360138,0.00019884,2]
[359788128,1746348741338,-193.21360137,0.00019895,2]
[359788129,1746348741360,-238.68741952,0.00019899,2]
[359788130,1746348741381,-500.0,0.00019899,2]
[359788131,1746348741402,-500.0,0.00019899,2]
[359788132,1746348741422,-500.0,0.00019899,2]
[359788133,1746348741443,-500.0,0.00019899,2]
[359788134,1746348741465,-500.0,0.00019899,2]
[359788135,1746348741486,-500.0,0.00019899,2]
[359788136,1746348741507,-408.01310416,0.00019899,2]
[359788137,1746348765986,-316.97379166,0.00019501,2]
[359788138,1746348773827,-296.30003093,0.00019501,2]
[359788139,1746348779360,-193.76925912,0.00019501,2]
[359788140,1746348784108,-246.0193205,0.00019501,2]
[359788141,1746348834265,-1074.0,0.0001975,2]
[359788142,1746348834286,-300.0,0.00019899,2]
[359788143,1746348834309,-200.0,0.000199,2]
[359788144,1746348834331,-481.395,0.000199,2]
[359788145,1746348834355,-267.98244918,0.000199,2]
[359788146,1746348834378,-823.68827463,0.000199,2]
[359788147,1746348834404,-1852.93427619,0.000199,2]
[359788148,1746348859958,-170.01248785,0.00019502,2]
[359788149,1746348863657,-184.53888246,0.00019502,2]
[359788150,1746348868377,-165.59184288,0.00019502,2]
[359788151,1746348871194,-264.98170447,0.00019502,2]
[359788152,1746348875414,-284.53888246,0.00019502,2]
[359788153,1746348879912,-25.41436885,0.00019502,2]
[359788154,1746349024523,184.03,0.00019498,2]
[359788155,1746349084431,22526.98,0.00018942,2]
[359788156,1746349146571,250.0,0.00017,2]
[359788157,1746349147646,300.0,0.00019,2]
[359788158,1746349208032,2359.189775,0.00019456,2]
[359788160,1746349375425,182.18,0.00018859,2]
[359788161,1746349497783,-478.3184178,0.00019521,2]
[359788162,1746349502191,-370.95,0.00019521,2]
[359788163,1746349506046,-5.12532163,0.00019521,2]
[359788164,1746349525513,-200.0,0.00019612,2]
[359788165,1746349525536,-200.0,0.00019669,2]
[359788166,1746349525558,-299.0650366,0.00019669,2]
[359788167,1746349525580,-187.06215378,0.00019695,2]
[359788168,1746349525601,-187.06215376,0.00019739,2]
[359788169,1746349525623,-200.0,0.00019751,2]
[359788170,1746349525644,-187.06215376,0.00019782,2]
[359788171,1746349525666,-182.22149637,0.00019788,2]
[359788172,1746349525687,-300.0,0.00019792,2]
[359788173,1746349525710,-17809.27215527,0.00019793,2]
[359788174,1746349525732,-248.25485046,0.00019794,2]
[359788200,1746349651003,160.0,0.00019415,2]
[359788202,1746349801227,-639.37137657,0.00019606,2]
[359788203,1746349801249,-827.69726303,0.000197,2]
[359788204,1746349801270,-226.3922,0.00019729,2]
[359788205,1746349801291,-270.1928,0.00019752,2]
[359788206,1746349801312,-1617.7153,0.00019753,2]
[359788207,1746349801336,-5000.0,0.00019765,2]
[359788208,1746349801360,-2543.49171262,0.00019782,2]
[359788209,1746349801382,-182.22149637,0.00019782,2]
[359788210,1746349801403,-36246.2726,0.00019784,2]
[359788211,1746349801428,-207.4,0.00019793,2]
[359788212,1746349801449,-200.0,0.00019794,2]
[359788213,1746349801472,-264.51314118,0.00019795,2]
[359788214,1746349801495,-2543.4917126,0.00019795,2]
[359788215,1746349801516,-157.3102981,0.00019799,2]
[359788216,1746349801538,-11973.71298889,0.000198,2]
[359788217,1746349801560,-156.20860496,0.000198,2]
[359788218,1746349801582,-850.0,0.00019804,2]
[359788219,1746349801605,-17809.27215526,0.00019805,2]
[359788220,1746349801628,-2543.4917126,0.00019808,2]
[359788221,1746349801652,-17809.27215526,0.00019817,2]
[359788222,1746349801675,-12500.0,0.00019821,2]
[359788223,1746349801698,-264.51314118,0.00019821,2]
[359788224,1746349801723,-2543.4917126,0.00019821,2]
[359788225,1746349801747,-17809.27215526,0.00019829,2]
[359788226,1746349801769,-12500.0,0.0001983,2]
[359788227,1746349801794,-2543.4917126,0.00019834,2]
[359788228,1746349801816,-12500.0,0.00019838,2]
[359788229,1746349801838,-200.0,0.0001984,2]
[359788230,1746349801861,-17809.27215526,0.00019841,2]
[359788231,1746349801883,-12500.0,0.00019847,2]
[359788232,1746349801904,-264.51314118,0.00019848,2]
[359788233,1746349801928,-2543.4917126,0.00019848,2]
[359788234,1746349801951,-428.27554018,0.00019851,2]
[359788235,1746349801974,-500.0,0.00019851,2]
[359788236,1746349802005,-500.0,0.00019851,2]
[359788237,1746349802029,-500.0,0.00019851,2]
[359788238,1746349802052,-500.0,0.00019851,2]
[359788239,1746349802083,-500.0,0.00019851,2]
[359788240,1746349802106,-500.0,0.00019851,2]
[359788241,1746349802137,-500.0,0.00019851,2]
[359788242,1746349802165,-500.0,0.00019851,2]
[359788243,1746349802188,-500.0,0.00019851,2]
[359788244,1746349802209,-500.0,0.00019851,2]
[359788245,1746349802238,-500.0,0.00019851,2]
[359788246,1746349802259,-500.0,0.00019851,2]
[359788247,1746349802289,-500.0,0.00019851,2]
[359788248,1746349802313,-500.0,0.00019851,2]
[359788249,1746349802347,-500.0,0.00019851,2]
[359788250,1746349802370,-500.0,0.00019851,2]
[359788251,1746349802398,-500.0,0.00019851,2]
[359788252,1746349802421,-500.0,0.00019851,2]
[359788253,1746349802442,-500.0,0.00019851,2]
[359788254,1746349802470,-500.0,0.00019851,2]
[359788255,1746349802492,-500.0,0.00019851,2]
[359788256,1746349802520,-500.0,0.00019851,2]
[359788257,1746349802542,-622.13251301,0.00019851,2]
[359788258,1746349802570,-359.52557753,0.00019851,2]
[359788259,1746349802598,-500.0,0.00019851,2]
[359788260,1746349802620,-500.0,0.00019851,2]
[359788261,1746349802647,-500.0,0.00019851,2]
[359788262,1746349802675,-206.61395306,0.00019851,2]
[359788263,1746349802696,-156.583782,0.00019852,2]
[359788264,1746349802718,-17809.27215526,0.00019852,2]
[359788265,1746349802740,-151.0,0.00019853,2]
[359788266,1746349802761,-12500.0,0.00019856,2]
[359788267,1746349802784,-2543.4917126,0.00019861,2]
[359788268,1746349802805,-1000.0,0.00019863,2]
[359788269,1746349802826,-1000.0,0.00019863,2]
[359788270,1746349802848,-1000.0,0.00019863,2]
[359788271,1746349802869,-1000.0,0.00019863,2]
[359788272,1746349802890,-1000.0,0.00019863,2]
[359788273,1746349802911,-1000.0,0.00019863,2]
[359788274,1746349802933,-1072.0,0.00019863,2]
[359788275,1746349802956,-17809.27215526,0.00019864,2]
[359788276,1746349802979,-971343.82416009,0.00019865,2]
[359788277,1746349803001,-12500.0,0.00019865,2]
[359788278,1746349803029,-12500.0,0.00019865,2]
[359788279,1746349803054,-501.85533866,0.00019873,2]
[359788280,1746349803079,-500.0,0.00019873,2]
[359788281,1746349803101,-500.0,0.00019873,2]
[359788282,1746349803125,-165.02037954,0.00019873,2]
[359788283,1746349803149,-497.13315034,0.00019873,2]
[359788284,1746349803175,-500.0,0.00019873,2]
[359788285,1746349803199,-502.54862324,0.00019873,2]